bitfinex/quotes_BTCUSD_20251230
["timestamp","ask_amount","ask_price","bid_price","bid_amount"]
[1767113786318,0.01136,88782.0,88763.0,0.28427]
[1767113786522,0.01192984,88782.0,88763.0,0.28427]
[1767113786723,0.01192984,88782.0,88764.0,0.28427]
[1767113786855,0.01136,88781.0,88764.0,0.28427]
[1767113787354,0.01136,88781.0,88765.0,0.0112657]
[1767113787563,0.01136,88780.0,88768.0,0.28427]
[1767113788364,0.01136,88780.0,88768.0,0.01126532]
[1767113788607,0.00056984,88782.0,88769.0,0.28427]
[1767113788810,0.010834,88779.0,88771.0,0.28427]
[1767113789805,0.00056984,88782.0,88775.0,0.28427]
[1767113789927,0.00056984,88782.0,88777.0,0.28427]
[1767113791092,0.0675696,88798.0,88776.0,0.28427]
[1767113791292,0.01136,88790.0,88776.0,0.28427]
[1767113791488,0.20054,88790.0,88772.0,0.02262481]
[1767113791668,0.20054,88790.0,88773.0,0.01126468]
[1767113791829,0.20054,88790.0,88774.0,0.28427]
[1767113792231,0.01136,88790.0,88774.0,0.29553455]
[1767113792638,0.01166164,88797.0,88776.0,0.28427]
[1767113792847,0.01126189,88795.0,88776.0,0.28427]
[1767113793057,0.02262202,88794.0,88776.0,0.28427]
[1767113793265,0.01136,88794.0,88776.0,0.28427]
[1767113793462,0.02262202,88794.0,88776.0,0.28427]
[1767113794068,0.01136,88794.0,88776.0,0.28427]
[1767113794310,0.01126227,88792.0,88776.0,0.28427]
[1767113794506,0.01126494,88771.0,88746.0,0.01126811]
[1767113794767,0.05643197,88771.0,88748.0,0.28427]
[1767113794964,0.01126506,88770.0,88750.0,0.28427]
[1767113795178,0.00010675,88771.0,88750.0,0.2955376]
[1767113795415,0.00010675,88771.0,88757.0,0.01126671]
[1767113795634,0.00010675,88771.0,88750.0,0.54511967]
[1767113795635,0.00010675,88771.0,88760.0,0.29553633]
[1767113795841,0.00010675,88771.0,88760.0,0.28427]
[1767113795972,7.5e-07,88771.0,88762.0,0.01126608]
[1767113796174,7.5e-07,88771.0,88760.0,0.28427]
[1767113796497,0.0112662,88761.0,88754.0,0.01136]
[1767113796781,0.0112662,88761.0,88709.0,0.08106805]
[1767113796782,0.29329,88754.0,88736.0,0.29563]
[1767113796941,0.29274,88754.0,88736.0,0.29563]
[1767113797492,0.01136,88756.0,88736.0,0.30689938]
[1767113797692,9.38e-05,88756.0,88743.0,0.28427]
[1767113797983,0.01136,88759.0,88745.0,0.28427]
[1767113798325,0.02262646,88759.0,88745.0,0.28427]
[1767113798524,0.01136,88759.0,88745.0,0.28427]
[1767113799584,0.02262646,88759.0,88745.0,0.28427]
[1767113800545,0.01136,88759.0,88745.0,0.28427]
[1767113800764,0.01126633,88760.0,88745.0,0.28427]
[1767113800970,0.01136,88769.0,88760.0,0.000443]
[1767113801682,0.01136,88769.0,88758.0,0.28427]
[1767113802089,0.02262519,88769.0,88758.0,0.28427]
[1767113802440,0.01136,88769.0,88758.0,0.28427]
[1767113803582,0.01126506,88770.0,88758.0,0.28427]
[1767113803583,0.02262506,88770.0,88758.0,0.28427]
[1767113803992,0.01136,88770.0,88758.0,0.28427]
[1767113804199,7.5e-07,88771.0,88758.0,0.28427]
[1767113804412,0.01136,88770.0,88758.0,0.28427]
[1767113806401,7.5e-07,88771.0,88758.0,0.28427]
[1767113806623,0.01136,88770.0,88758.0,0.28427]
[1767113807109,0.01136,88770.0,88759.0,0.28458]
[1767113808386,7.5e-07,88771.0,88759.0,0.28458]
[1767113808587,0.01136075,88771.0,88759.0,0.28458]
[1767113808876,7.5e-07,88771.0,88761.0,0.28458]
[1767113811250,7.5e-07,88771.0,88760.0,0.54511967]
[1767113811251,0.000656,88761.0,88760.0,0.28458]
[1767113811713,7.5e-07,88771.0,88760.0,0.28458]
[1767113812677,7.5e-07,88771.0,88761.0,0.28458]
[1767113817322,0.29771,88785.0,88769.0,0.28458]
[1767113817512,0.0004,88800.0,88769.0,0.092766]
[1767113817513,0.01136,88787.0,88769.0,0.092766]
[1767113817712,0.29771,88790.0,88772.0,0.28458]
[1767113817917,0.01136,88789.0,88772.0,0.28458]
[1767113818120,0.30907,88790.0,88772.0,0.28458]
[1767113818342,0.29771,88796.0,88780.0,0.54511967]
[1767113818542,0.01136,88792.0,88780.0,0.54446367]
[1767113818740,0.01136,88794.0,88780.0,0.82904367]
[1767113818941,0.29771,88796.0,88780.0,0.28458]
[1767113819146,0.0004,88797.0,88787.0,0.28953]
[1767113820274,0.0004,88800.0,88788.0,0.28953]
[1767113820448,0.28100681,88800.0,88786.0,0.01136]
[1767113821064,0.28100681,88800.0,88786.0,0.30089]
[1767113821065,0.00050681,88800.0,88786.0,0.30089]
[1767113822816,0.00050681,88800.0,88790.0,0.54511967]
[1767113823115,0.00050681,88800.0,88786.0,0.30089]
[1767113824262,0.00050681,88800.0,88791.0,0.28953]
[1767113825099,0.00035781,88800.0,88791.0,0.28953]
[1767113825299,0.00035781,88800.0,88791.0,0.3007924]
[1767113825502,0.0004,88805.0,88792.0,0.28953]
[1767113826283,0.0004,88805.0,88795.0,0.28953]
[1767113826482,0.0004,88805.0,88795.0,0.28963681]
[1767113827210,0.0006895,88805.0,88795.0,0.28963681]
[1767113827552,0.0004,88809.0,88795.0,0.28963681]
[1767113827553,0.00033696,88809.0,88795.0,0.54522648]
[1767113827754,0.0004,88815.0,88806.0,0.28953]
[1767113827977,0.0004,88815.0,88807.0,0.010771]
[1767113828806,0.2805,88809.0,88807.0,0.010771]
[1767113828963,0.0112605,88806.0,88800.0,0.01132]
[1767113829165,0.2805,88805.0,88800.0,0.01132]
[1767113829454,0.2805,88810.0,88800.0,0.01132]
[1767113829650,0.29175999,88810.0,88800.0,0.01132]
[1767113830458,0.2805,88810.0,88800.0,0.01132]
[1767113831183,0.29175999,88810.0,88800.0,0.01132]
[1767113831460,0.2805,88810.0,88800.0,0.01132]
[1767113831864,0.29175999,88810.0,88800.0,0.01132]
[1767113832474,0.2805,88810.0,88800.0,0.01132]
[1767113834492,0.01125948,88814.0,88800.0,0.01132]
[1767113834704,0.2809,88815.0,88800.0,0.84596967]
[1767113834905,0.2805,88813.0,88800.0,0.01132]
[1767113835107,0.29175973,88812.0,88800.0,0.01132]
[1767113835311,0.2805,88812.0,88800.0,0.01132]
[1767113835535,0.29175973,88812.0,88800.0,0.01132]
[1767113835955,0.01125986,88811.0,88800.0,0.01132]
[1767113836352,0.05630561,88802.0,88800.0,0.01132]
[1767113836552,0.01126062,88805.0,88800.0,1e-08]
[1767113836753,0.05630567,88801.0,88800.0,1e-08]
[1767113836928,0.29005,88797.0,88795.0,0.00010681]
[1767113837108,0.30131138,88799.0,88795.0,0.00010681]
[1767113837532,0.01126151,88798.0,88795.0,0.00010681]
[1767113838029,0.30131151,88798.0,88795.0,0.00010681]
[1767113838264,0.30131202,88794.0,88776.0,0.04508]
[1767113838576,0.01126252,88790.0,88777.0,0.01132]
[1767113838729,0.01126329,88784.0,88777.0,0.01132]
[1767113838937,0.01126354,88782.0,88777.0,0.01132]
[1767113839141,0.01126379,88780.0,88769.0,0.29055]
[1767113839359,0.01126392,88779.0,88770.0,0.01132]
[1767113839538,0.29005,88784.0,88770.0,0.01132]
[1767113839539,0.01126341,88783.0,88770.0,0.01132]
[1767113839787,0.01126291,88787.0,88771.0,0.29055]
[1767113840142,0.01126303,88786.0,88771.0,0.29055]
[1767113840347,0.29005,88783.0,88770.0,0.01132]
[1767113840604,0.29005,88782.0,88770.0,0.01132]
[1767113841279,0.28985,88782.0,88770.0,0.01132]
[1767113841426,0.28985,88782.0,88770.0,0.01112]
[1767113841831,0.288551,88782.0,88770.0,0.01112]
[1767113842100,0.288551,88782.0,88770.0,0.01092]
[1767113842518,0.288351,88782.0,88770.0,0.01092]
[1767113842728,0.288351,88782.0,88770.0,0.01072]
[1767113843074,0.288151,88782.0,88770.0,0.01072]
[1767113843515,0.288151,88782.0,88770.0,0.01052]
[1767113843921,0.30137,88787.0,88770.0,0.01052]
[1767113844266,0.29005,88787.0,88770.0,0.01052]
[1767113846585,0.29005,88787.0,88770.0,0.55571796]
[1767113846998,0.01132,88788.0,88771.0,0.29055]
[1767113847621,0.30137,88788.0,88771.0,0.29055]
[1767113847846,0.01126341,88783.0,88771.0,0.29055]
[1767113848023,0.01126329,88784.0,88771.0,0.29055]
[1767113848223,0.29005,88786.0,88771.0,0.29055]
[1767113848743,0.01126278,88788.0,88773.0,0.29055]
[1767113848921,0.55656723,88790.0,88773.0,0.29055]
[1767113849124,0.54530471,88790.0,88773.0,0.29055]
[1767113849350,0.55656723,88790.0,88773.0,0.29055]
[1767113849579,0.01126278,88788.0,88773.0,0.29055]
[1767113849748,0.30131291,88787.0,88773.0,0.29055]
[1767113849897,0.29005,88787.0,88773.0,0.29055]
[1767113850510,0.00010675,88790.0,88773.0,0.29055]
[1767113850817,0.00010675,88790.0,88780.0,0.54517451]
[1767113851075,0.00010675,88790.0,88781.0,0.29055]
[1767113851477,0.02248864,88795.0,88781.0,0.29055]
[1767113851679,0.02248864,88795.0,88781.0,0.29045675]
[1767113851836,0.01126189,88795.0,88781.0,0.29045675]
[1767113852624,0.30131176,88796.0,88781.0,0.29045675]
[1767113852756,0.30131176,88796.0,88781.0,0.00010675]
[1767113852958,0.01126189,88795.0,88781.0,0.00010675]
[1767113853165,0.01126202,88794.0,88781.0,7.5e-07]
[1767113853611,0.30131189,88795.0,88781.0,7.5e-07]
[1767113853812,0.01126202,88794.0,88781.0,7.5e-07]
[1767113854012,0.30111189,88795.0,88781.0,7.5e-07]
[1767113854213,0.29005,88795.0,88780.0,0.01112075]
[1767113854512,0.30131189,88795.0,88780.0,0.01092075]
[1767113854670,0.30111189,88795.0,88780.0,0.01092075]
[1767113854877,0.30111189,88795.0,88780.0,0.01072075]
[1767113855096,0.28985,88795.0,88780.0,0.01072075]
[1767113855901,0.30111189,88795.0,88780.0,0.01072075]
[1767113856245,0.30111189,88795.0,88768.0,0.01126532]
[1767113856246,0.29005,88781.0,88767.0,0.29055]
[1767113856376,0.0563203,88778.0,88764.0,0.0002607]
[1767113856575,0.29005,88777.0,88765.0,0.01132]
[1767113856807,0.00010677,88781.0,88765.0,0.01132]
[1767113857053,0.00010677,88781.0,88766.0,0.29055]
[1767113858030,0.01126379,88780.0,88766.0,0.29055]
[1767113858255,0.01137044,88781.0,88766.0,0.29055]
[1767113858445,0.00010677,88781.0,88766.0,0.29055]
[1767113858893,0.01137044,88781.0,88766.0,0.29055]
[1767113859096,0.30131455,88774.0,88765.0,0.01132]
[1767113859399,0.30131455,88774.0,88764.0,0.0002607]
[1767113859400,0.28985,88772.0,88764.0,0.0002607]
[1767113859569,0.28985,88772.0,88764.0,6.07e-05]
[1767113859746,0.29005,88778.0,88764.0,6.07e-05]
[1767113863467,0.28706,88791.0,88778.0,0.001099]
[1767113864000,0.28706,88791.0,88776.0,0.28973]
[1767113864831,0.29832214,88793.0,88776.0,0.28973]
[1767113865043,0.28706,88793.0,88776.0,0.28973]
[1767113865960,0.28686,88793.0,88776.0,0.28973]
[1767113866727,0.28686,88793.0,88776.0,0.3009943]
[1767113866907,0.28686,88793.0,88776.0,0.28973]
[1767113867102,0.28686,88793.0,88776.0,0.3009943]
[1767113867700,0.28686,88793.0,88776.0,0.28973]
[1767113867850,0.29095,88792.0,88776.0,0.28973]
[1767113868054,0.30221227,88792.0,88776.0,0.28973]
[1767113868252,0.01126329,88784.0,88775.0,0.01132]
[1767113868464,0.01126291,88787.0,88775.0,0.01132]
[1767113868465,0.29095,88786.0,88775.0,0.01132]
[1767113868688,0.29095,88777.0,88764.0,0.2760107]
[1767113868889,0.29095,88777.0,88765.0,0.01132]
[1767113869089,0.29095,88782.0,88765.0,0.28727]
[1767113869519,0.30221354,88782.0,88765.0,0.28727]
[1767113870030,0.29095,88782.0,88765.0,0.28727]
[1767113871379,0.29095,88782.0,88766.0,0.05632787]
[1767113871591,0.29095,88788.0,88782.0,0.001099]
[1767113872190,0.29095,88788.0,88774.0,0.01132]
[1767113873209,0.29075,88788.0,88774.0,0.01132]
[1767113874141,0.05631513,88787.0,88774.0,0.01132]
[1767113874340,0.01126316,88785.0,88774.0,0.01132]
[1767113874548,0.01126329,88784.0,88774.0,0.01132]
[1767113874791,0.01126341,88783.0,88774.0,0.01132]
[1767113875008,0.29095,88782.0,88774.0,0.01132]
[1767113875226,0.01126506,88770.0,88764.0,0.00016747]
[1767113875439,0.05632841,88766.0,88764.0,1e-08]
[1767113875637,0.01126544,88767.0,88764.0,1e-08]
[1767113875977,0.01126532,88768.0,88764.0,1e-08]
[1767113876202,0.30221506,88770.0,88764.0,1e-08]
[1767113878526,0.30221506,88770.0,88762.0,0.01112001]
[1767113878726,0.30221506,88770.0,88762.0,0.01122676]
[1767113879326,0.01126494,88771.0,88762.0,0.01122676]
[1767113879534,0.01126506,88770.0,88762.0,0.01122676]
[1767113879707,0.01126494,88771.0,88762.0,0.01122676]
[1767113879917,0.01126506,88770.0,88762.0,0.01122676]
[1767113880124,0.30221455,88774.0,88762.0,0.01122676]
[1767113880378,0.01126468,88773.0,88762.0,0.01122676]
[1767113880886,0.01126481,88772.0,88762.0,0.01122676]
[1767113881387,0.22528272,88778.0,88772.0,0.000549]
[1767113881388,0.01126417,88777.0,88772.0,0.000549]
[1767113881629,0.01126278,88788.0,88771.0,0.01132]
[1767113881844,0.01126151,88798.0,88779.0,0.27595]
[1767113882046,0.29095,88799.0,88781.0,0.27595]
[1767113882517,0.30221138,88799.0,88781.0,0.27595]
[1767113882861,0.29095,88799.0,88781.0,0.27595]
[1767113883062,0.29095,88799.0,88781.0,0.28721367]
[1767113883686,0.29095,88799.0,88781.0,0.27595]
[1767113884159,0.29095,88799.0,88781.0,0.28721367]
[1767113884862,0.01126113,88801.0,88781.0,0.28721367]
[1767113885066,0.011261,88802.0,88783.0,0.28984]
[1767113885367,0.0002607,88803.0,88785.0,0.28984]
[1767113886131,0.01152158,88803.0,88785.0,0.28984]
[1767113886510,0.01152158,88803.0,88783.0,0.01126341]
[1767113886511,0.0002607,88803.0,88790.0,0.79992561]
[1767113886718,0.0002607,88803.0,88791.0,0.30116]
[1767113887764,0.00010679,88803.0,88791.0,0.30116]
[1767113887972,0.00031999,88803.0,88791.0,0.30116]
[1767113888170,0.01126113,88801.0,88791.0,0.01132]
[1767113888382,0.011261,88802.0,88791.0,0.01132]
[1767113888584,0.00031999,88803.0,88791.0,0.01132]
[1767113889411,0.0004,88815.0,88798.0,0.28984]
[1767113889616,0.01201531,88815.0,88800.0,0.28984]
[1767113890041,0.00075596,88815.0,88800.0,0.28984]
[1767113890664,0.01201531,88815.0,88800.0,0.28984]
[1767113890894,0.00075596,88815.0,88800.0,0.28984]
[1767113891554,0.01201531,88815.0,88801.0,0.28984]
[1767113891768,0.01125948,88814.0,88801.0,0.28984]
[1767113892005,0.01125961,88813.0,88801.0,0.28984]
[1767113892429,0.0683127,88815.0,88801.0,0.28984]
[1767113892629,0.01125973,88812.0,88801.0,0.28984]
[1767113892929,0.01125948,88814.0,88801.0,0.28984]
[1767113893075,0.01125961,88813.0,88801.0,0.28984]
[1767113893476,0.01125986,88811.0,88801.0,0.28984]
[1767113893672,0.01126037,88807.0,88801.0,0.28984]
[1767113893902,0.01125986,88811.0,88801.0,0.28984]
[1767113894095,0.01125999,88810.0,88801.0,0.28984]
[1767113894965,0.01126024,88808.0,88801.0,0.28984]
[1767113895151,0.01125999,88810.0,88808.0,0.00023]
[1767113895450,0.0675597,88811.0,88809.0,0.01132]
[1767113895660,0.01125986,88811.0,88809.0,0.011001]
[1767113896080,0.06755974,88811.0,88809.0,0.011001]
[1767113896281,0.01125973,88812.0,88809.0,0.011001]
[1767113896478,0.06755849,88812.0,88809.0,0.011001]
[1767113896886,0.01125973,88812.0,88809.0,0.011001]
[1767113897039,0.00075596,88815.0,88812.0,0.000549]
[1767113897244,0.00075596,88815.0,88813.0,0.00055]
[1767113897760,0.00075596,88815.0,88809.0,0.011001]
[1767113898485,0.00020696,88815.0,88809.0,0.011001]
[1767113899275,0.00020696,88815.0,88809.0,0.01095826]
[1767113900251,0.00020696,88815.0,88809.0,0.01091432]
[1767113902537,0.06755201,88821.0,88810.0,0.29763]
[1767113902739,7.21e-05,88821.0,88810.0,0.29763]
[1767113902914,0.01133069,88821.0,88811.0,0.29763]
[1767113903115,0.01125872,88820.0,88811.0,0.29763]
[1767113903313,0.01133069,88821.0,88811.0,0.29763]
[1767113903983,0.06762414,88821.0,88811.0,0.29763]
[1767113904189,7.21e-05,88821.0,88811.0,0.29763]
[1767113905460,1e-08,88824.0,88820.0,0.01125872]
[1767113905697,0.0004,88840.0,88822.0,0.29763]
[1767113905863,0.2726,88837.0,88823.0,0.01132]
[1767113906565,0.01125657,88837.0,88823.0,0.30895]
[1767113906726,0.05668205,88839.0,88823.0,0.30895]
[1767113906933,0.06817118,88838.0,88823.0,0.30895]
[1767113907182,0.000632,88838.0,88823.0,0.30895]
[1767113907357,0.01188844,88838.0,88823.0,0.30895]
[1767113908330,0.06817114,88838.0,88823.0,0.30895]
[1767113908977,0.01125657,88837.0,88823.0,0.30895]
[1767113909400,0.01188844,88838.0,88823.0,0.30895]
[1767113909817,0.000632,88838.0,88823.0,0.30895]
[1767113910228,0.01188844,88838.0,88823.0,0.30895]
[1767113910431,0.000632,88838.0,88823.0,0.30895]
[1767113910840,0.01188844,88838.0,88823.0,0.30895]
[1767113911057,0.000632,88838.0,88823.0,0.30895]
[1767113911304,0.000632,88838.0,88828.0,0.5445136]
[1767113913900,0.000632,88838.0,88828.0,0.8421436]
[1767113914738,0.01125657,88837.0,88828.0,0.8421436]
[1767113914961,0.000632,88838.0,88803.0,0.22521654]
[1767113914962,0.28385859,88821.0,88816.0,0.01132]
[1767113915144,0.2726,88821.0,88817.0,0.01132]
[1767113915365,0.2726,88829.0,88821.0,0.00055]
[1767113915519,0.00167859,88827.0,88821.0,0.00055]
[1767113915734,0.00167859,88827.0,88817.0,0.5558336]
[1767113916343,0.00167859,88827.0,88817.0,0.01132]
[1767113916541,0.2726,88826.0,88799.0,0.06295238]
[1767113916866,0.2726,88818.0,88801.0,0.01132]
[1767113917069,0.28385897,88818.0,88801.0,0.30895]
[1767113917275,0.28385923,88816.0,88802.0,0.01132]
[1767113917541,0.2726,88816.0,88802.0,0.01132]
[1767113917797,0.28385923,88816.0,88802.0,0.01132]
[1767113917999,0.2726,88816.0,88802.0,0.01132]
[1767113918219,0.28385923,88816.0,88802.0,0.01132]
[1767113918411,0.01125923,88816.0,88802.0,0.01132]
[1767113918640,0.28385897,88818.0,88802.0,0.01132]
[1767113919265,0.2726,88818.0,88802.0,0.01132]
[1767113919467,0.28385897,88818.0,88802.0,0.01132]
[1767113919686,0.2726,88814.0,88799.0,0.29763]
[1767113919908,0.2726,88807.0,88800.0,0.01132]
[1767113920120,0.2726,88807.0,88801.0,0.01132]
[1767113920332,0.01125999,88810.0,88802.0,0.01132]
[1767113920747,0.01126012,88809.0,88802.0,0.010771]
[1767113920958,0.01125999,88810.0,88802.0,0.010771]
[1767113921631,0.06755721,88814.0,88802.0,0.010771]
[1767113921632,0.01125897,88818.0,88802.0,0.308401]
[1767113921838,0.01125885,88819.0,88802.0,0.308401]
[1767113922047,0.01125897,88818.0,88802.0,0.308401]
[1767113922257,0.01125885,88819.0,88802.0,0.308401]
[1767113922460,0.01125897,88818.0,88802.0,0.308401]
[1767113923051,0.01125872,88820.0,88802.0,0.308401]
[1767113923184,0.28385872,88820.0,88802.0,0.308401]
[1767113923396,0.06755217,88821.0,88802.0,0.308401]
[1767113923615,0.28385796,88826.0,88821.0,0.000549]
[1767113923830,0.2726,88826.0,88821.0,0.000549]
[1767113924242,0.32889041,88826.0,88811.0,0.01132]
[1767113924453,0.28385796,88826.0,88811.0,0.0112778]
[1767113924657,0.01125809,88825.0,88811.0,0.0112778]
[1767113924859,0.28385796,88826.0,88811.0,0.0112778]
[1767113925515,0.2726,88826.0,88811.0,0.0112778]
[1767113926745,0.2726,88826.0,88811.0,0.2894778]
[1767113928025,0.01125809,88825.0,88811.0,0.2894778]
[1767113928423,0.01125809,88825.0,88811.0,0.7894778]
[1767113928633,0.01125821,88824.0,88811.0,0.7894778]
[1767113928829,0.2726,88826.0,88811.0,0.7894778]
[1767113929048,0.28406,88820.0,88811.0,0.5112778]
[1767113929268,0.28406,88820.0,88811.0,0.5]
[1767113929533,0.28406,88820.0,88812.0,0.01132]
[1767113929820,0.28406,88814.0,88793.0,0.2782]
[1767113930031,0.28406,88814.0,88767.0,0.45061386]
[1767113930032,0.11111,88806.0,88787.0,0.2782]
[1767113930197,0.00167859,88827.0,88807.0,0.2782]
[1767113930405,0.01293642,88827.0,88809.0,0.2782]
[1767113930662,0.01125796,88826.0,88809.0,0.2782]
[1767113930801,0.01125821,88824.0,88809.0,0.2782]
[1767113930982,0.05629236,88822.0,88809.0,0.2782]
[1767113931183,0.01125859,88821.0,88809.0,0.27815767]
[1767113931388,0.01125847,88822.0,88809.0,0.27815767]
[1767113931588,0.01125872,88820.0,88809.0,0.27815767]
[1767113931817,0.01125872,88820.0,88808.0,0.01132]
[1767113932017,0.01133859,88821.0,88803.0,0.2782]
[1767113932224,0.01125935,88815.0,88803.0,0.2782]
[1767113932422,0.01125935,88815.0,88804.0,0.01132]
[1767113932845,0.06755694,88814.0,88804.0,0.01132]
[1767113933247,0.01125961,88813.0,88804.0,0.01132]
[1767113933640,0.01125948,88814.0,88804.0,0.01132]
[1767113933846,0.06763654,88815.0,88804.0,0.01132]
[1767113934057,0.01125948,88814.0,88804.0,0.01132]
[1767113934265,0.01125948,88814.0,88798.0,0.2782]
[1767113934463,0.06756093,88809.0,88798.0,0.2782]
[1767113934663,0.01126024,88808.0,88799.0,0.01132]
[1767113934887,0.01126024,88808.0,88800.0,0.01132]
[1767113935061,0.01126012,88809.0,88801.0,0.01132]
[1767113935462,0.01126024,88808.0,88801.0,0.01132]
[1767113935669,0.01126012,88809.0,88801.0,0.01132]
[1767113935870,0.01126024,88808.0,88801.0,0.01132]
[1767113936081,0.01126062,88805.0,88801.0,0.01132]
[1767113936257,0.01126037,88807.0,88801.0,0.01132]
[1767113936461,8e-05,88811.0,88801.0,0.01132]
[1767113936907,0.05637976,88811.0,88801.0,0.01132]
[1767113937256,0.01126012,88809.0,88801.0,0.01132]
[1767113937814,0.01126024,88808.0,88801.0,0.01132]
[1767113938301,0.01126037,88807.0,88801.0,0.01132]
[1767113938426,0.01126024,88808.0,88801.0,0.01132]
[1767113938630,0.01126012,88809.0,88801.0,0.01132]
[1767113938865,0.06756112,88809.0,88801.0,0.01132]
[1767113939043,0.01126024,88808.0,88801.0,0.01132]
[1767113939598,0.06755999,88810.0,88801.0,0.01132]
[1767113939795,0.01126012,88809.0,88801.0,0.01132]
[1767113940074,0.06755999,88810.0,88801.0,0.01132]
[1767113940075,0.01125999,88810.0,88801.0,0.01132]
[1767113940360,0.01126062,88805.0,88789.0,0.000232]
[1767113940560,0.01126189,88795.0,88789.0,0.000232]
[1767113940707,0.01126176,88796.0,88789.0,0.000232]
[1767113940908,0.02258138,88799.0,88796.0,0.000549]
[1767113941106,0.01126151,88798.0,88789.0,0.000232]
[1767113941310,0.02258138,88799.0,88789.0,0.000232]
[1767113941509,0.01126151,88798.0,88789.0,0.000232]
[1767113941693,0.01132,88799.0,88789.0,0.00058796]
[1767113941890,0.07888834,88799.0,88789.0,0.00058796]
[1767113942099,0.01126164,88797.0,88789.0,0.00058796]
[1767113942284,0.07896834,88799.0,88789.0,0.00058796]
[1767113942484,0.01126164,88797.0,88789.0,0.00058796]
[1767113943117,0.01126176,88796.0,88789.0,0.00058796]
[1767113943319,0.01126164,88797.0,88789.0,0.00058796]
[1767113943523,0.01126176,88796.0,88789.0,0.00058796]
[1767113944006,0.02266138,88799.0,88789.0,0.00058796]
[1767113944007,0.02258138,88799.0,88789.0,0.00058796]
[1767113944230,0.01126164,88797.0,88789.0,0.00058796]
[1767113944943,0.01126176,88796.0,88789.0,0.00058796]
[1767113945149,0.01126164,88797.0,88789.0,0.00058796]
[1767113945707,0.01126176,88796.0,88789.0,0.00058796]
[1767113946594,0.01126164,88797.0,88789.0,0.00058796]
[1767113947154,0.54512558,88800.0,88789.0,0.00058796]
[1767113947364,0.01125859,88821.0,88801.0,0.29617]
[1767113947614,0.55644558,88820.0,88801.0,0.29617]
[1767113947907,0.54512558,88811.0,88798.0,0.01132]
[1767113948097,0.54512558,88811.0,88799.0,0.29617]
[1767113948518,0.54512558,88811.0,88799.0,0.2963131]
[1767113949578,0.01126012,88809.0,88799.0,0.2963131]
[1767113949786,0.55638544,88811.0,88799.0,0.2963131]
[1767113950189,0.01132,88810.0,88799.0,0.2963131]
[1767113950403,0.010221,88810.0,88801.0,0.29617]
[1767113950614,0.01132,88820.0,88801.0,0.29617]
[1767113950778,0.55644558,88820.0,88803.0,0.30743088]
[1767113950992,0.55644558,88820.0,88803.0,0.29617]
[1767113951339,0.55644558,88820.0,88803.0,0.30743088]
[1767113951512,0.55644558,88820.0,88804.0,0.29617]
[1767113951953,0.55644558,88820.0,88804.0,0.30743075]
[1767113952158,0.55644558,88820.0,88804.0,0.29617]
[1767113952361,0.54512558,88820.0,88804.0,0.30743075]
[1767113952566,0.01132,88819.0,88804.0,0.30757385]
[1767113953356,0.54512558,88820.0,88806.0,0.29617]
[1767113953559,0.01132,88819.0,88806.0,0.2963131]
[1767113954988,0.0112572,88832.0,88810.0,0.29617]
[1767113955163,0.01125745,88830.0,88811.0,0.29617]
[1767113955360,0.01132,88831.0,88811.0,0.29617]
[1767113955578,0.02257733,88831.0,88811.0,0.30742986]
[1767113956261,0.01125745,88830.0,88811.0,0.29617]
[1767113956463,0.01125809,88825.0,88811.0,0.29617]
[1767113956592,0.01125783,88827.0,88811.0,0.29617]
[1767113956822,0.01125771,88828.0,88811.0,0.29617]
[1767113957217,0.56674558,88830.0,88811.0,0.29617]
[1767113957480,0.01125758,88829.0,88811.0,0.29617]
[1767113957819,0.56770303,88830.0,88811.0,0.30742986]
[1767113958242,0.01125707,88833.0,88821.0,0.29662]
[1767113958484,0.01132,88829.0,88821.0,0.29662]
[1767113958667,0.01132,88830.0,88821.0,0.29662]
[1767113959229,0.0112572,88832.0,88821.0,0.29662]
[1767113959458,7.609e-05,88832.0,88821.0,0.29662]
[1767113959910,0.01133329,88832.0,88821.0,0.29662]
[1767113960430,0.01125733,88831.0,88821.0,0.29662]
[1767113961166,0.01133329,88832.0,88821.0,0.29662]
[1767113961365,7.609e-05,88832.0,88821.0,0.29662]
[1767113961592,0.01132,88831.0,88821.0,0.29662]
[1767113962984,0.02257733,88831.0,88821.0,0.29662]
[1767113963191,0.01132,88831.0,88821.0,0.29662]
[1767113963818,7.609e-05,88832.0,88821.0,0.29662]
[1767113964227,7.609e-05,88832.0,88821.0,0.30787859]
[1767113964228,0.01139609,88832.0,88821.0,0.30787859]
[1767113965194,7.609e-05,88832.0,88821.0,0.30787859]
[1767113965434,7.609e-05,88832.0,88821.0,0.29662]
[1767113966241,7.609e-05,88832.0,88821.0,0.30787859]
[1767113966444,7.609e-05,88832.0,88821.0,0.29662]
[1767113967035,7.609e-05,88832.0,88824.0,0.01125821]
[1767113967298,7.609e-05,88832.0,88825.0,0.29662]
[1767113969214,7.609e-05,88832.0,88820.0,0.55644558]
[1767113969215,0.01235709,88825.0,88820.0,0.00967823]
[1767113969516,0.01125796,88826.0,88814.0,0.01132]
[1767113969692,0.01125809,88825.0,88814.0,0.29662]
[1767113969894,0.01125796,88826.0,88814.0,0.29662]
[1767113970655,0.01125809,88825.0,88814.0,0.29662]
[1767113970866,0.01125821,88824.0,88814.0,0.29662]
[1767113971260,0.01125809,88825.0,88814.0,0.29662]
[1767113971479,0.01125821,88824.0,88814.0,0.29662]
[1767113972198,0.01125809,88825.0,88814.0,0.29662]
[1767113972858,0.01125821,88824.0,88814.0,0.29662]
[1767113973260,0.01125809,88825.0,88814.0,0.29662]
[1767113975283,0.01125796,88826.0,88814.0,0.29662]
[1767113975491,0.01125809,88825.0,88814.0,0.29662]
[1767113975911,0.0675467,88828.0,88814.0,0.29662]
[1767113977686,0.01125783,88827.0,88814.0,0.29662]
[1767113978380,0.01125796,88826.0,88814.0,0.29662]
[1767113978584,0.01125783,88827.0,88814.0,0.29662]
[1767113979326,0.01125796,88826.0,88814.0,0.29662]
[1767113980243,0.01125783,88827.0,88814.0,0.29662]
[1767113981472,0.01125796,88826.0,88814.0,0.29662]
[1767113981864,0.01125809,88825.0,88814.0,0.29662]
[1767113982008,0.01125796,88826.0,88814.0,0.29662]
[1767113982234,0.01125859,88821.0,88814.0,0.296071]
[1767113982455,0.01125847,88822.0,88814.0,0.296071]
[1767113982679,0.01125834,88823.0,88814.0,0.296071]
[1767113982970,0.06754965,88824.0,88814.0,0.296071]